Cogmind - Beta 14 @@@ ROGUE MODE // 2024.09.06 @ 01:50:11 Player: Beef Result: Destroyed by Shrapnel Trap Performance ------------- Evolutions (0) 0 Regions Visited (2) 400 Robots Destroyed (28) 140 Value Destroyed (735) 735 Prototype IDs (2) 40 Alien Tech Used (0) 0 Bonus (0) 0 TOTAL SCORE: 1315 Bonus ------- None Cogmind --------- Core Integrity 0/250 Matter 300/300 Energy 98/100 System Corruption 2% Temperature Cool (0) Movement Rolling (130) Ox2 Location -10/Subcaves Parts ------- > --- POWER (1) -------- (None) > --- PROPULSION (2) --- Subdweller Monowheel Subdweller Monowheel > --- UTILITY (2) ------ Huge Storage Unit Improved Terrain Scanner > --- WEAPON (2) ------- (None) > --- INVENTORY (25) --- Light Treads Light Treads Aluminum Leg Aluminum Leg Subdweller Monowheel Small Storage Unit Visual Processing Unit Subdweller Optics Subdweller Optics Signal Interpreter Improved Terrain Scanner Terrain Scan Processor Propulsion Shielding Scrap Shield Subdweller Beam Cannon Mining Laser Hammer Peak State ------------ > --- POWER ------------ Subdweller Power Source > --- PROPULSION ------- Subdweller Monowheel Subdweller Monowheel > --- UTILITY ---------- Huge Storage Unit Improved Terrain Scanner > --- WEAPON ----------- Subdweller Laser Subdweller Machine Gun > --- INVENTORY -------- Light Treads Light Treads Small Storage Unit Visual Processing Unit Subdweller Optics Subdweller Optics Signal Interpreter Improved Terrain Scanner Terrain Scan Processor Propulsion Shielding Scrap Shield Subdweller Machine Gun Mining Laser Hammer Piercing Trap [Rating: 16] Favorites ----------- Power Light Ion Engine Engine Light Ion Engine Propulsion Light Treads Treads Light Treads Wheel Subdweller Monowheel Utility Improved Terrain Scanner Device Improved Terrain Scanner Storage Huge Storage Unit Weapon Assault Rifle Energy Gun Subdweller Laser Ballistic Gun Assault Rifle Impact Weapon Hammer Build | -11 -10 -10 ------- Run | Yrd Mat Sub Slots Evolved . | . . . Power . | . . . Propulsion . | . . . Utility . | . . . Weapon . | . . . Parts Attached 27 | 7 6 14 Power 4 | 1 1 2 Engine 4 | 1 1 2 Core . | . . . Reactor . | . . . Propulsion 11 | 1 3 7 Treads 5 | 1 1 3 Leg . | . . . Wheel 6 | . 2 4 Hover . | . . . Flight . | . . . Utility 3 | 2 1 . Device 1 | 1 . . Storage 2 | 1 1 . Processor . | . . . Hackware . | . . . Protection . | . . . Artifact . | . . . Weapon 9 | 3 1 5 Energy Gun 3 | 1 . 2 Energy Cannon . | . . . Ballistic Gun 5 | 2 . 3 Ballistic Cannon . | . . . Launcher . | . . . Special Weapon . | . . . Impact Weapon 1 | . 1 . Slashing Weapon . | . . . Piercing Weapon . | . . . Special Melee Weapon . | . . . Unidentified Prototypes . | . . . Parts Lost 12 | . . 12 Power 3 | . . 3 Propulsion 3 | . . 3 Utility . | . . . Weapon 6 | . . 6 Highest Loss Streak 4 | . . 4 To Critical Strikes . | . . . Average Slot Usage (%) 97 | . 98 96 Engine 13 | . 14 11 Treads 11 | . 19 2 Wheel 15 | . 6 25 Device 14 | . 14 14 Storage 14 | . 14 14 Energy Gun 6 | . . 13 Ballistic Gun 20 | . 26 13 Peak Build Rating 16 | 8 10 16 Average Rating 10 | 4 9 13 On Entrance 6 | . 8 10 Naked Turns . | . . . Heaviest Build 94 | 12 88 94 Greatest Support 40 | 20 40 40 Greatest Overweight (x) 29 | . 8 29 Average Overweight (x) 1 | . 1 2 Largest Inventory Capacity 25 | 8 25 25 Average Capacity 17 | 7 12 25 Most Carried 18 | 3 11 18 Average Carried 9 | 1 5 15 Final Capacity 25 | 8 25 25 Final Carried 18 | 3 11 18 Class Distribution -------------------- 64% | Mutant 35% | Scavenger-Mutant Dominant Class ---------------- Mutant | -10/Materials Scavenger-Mutant | -10/Subcaves Resources | -11 -10 -10 ----------- Run | Yrd Mat Sub Matter Collected 799 | 303 315 181 Remotely . | . . . Salvage Created 1104 | 151 562 391 Parts 77 | 12 41 24 Haulers Intercepted . | . . . Recyclers Shooed 1 | 1 . . Parts Field Recycled . | . . . Retrieved Matter . | . . . Parts Self-Destructed 6 | . . 6 Prevented . | . . . Kills | -11 -10 -10 ------- Run | Yrd Mat Sub Combat Hostiles Destroyed 17 | . 8 9 Guns 17 | . 8 9 Classes Destroyed 6 | 2 3 1 Builder 4 | . 4 . Tunneler 4 | 3 1 . Recycler 2 | 1 1 . Watcher 1 | . 1 . Grunt 10 | . 8 2 Subdweller 7 | . . 7 Best Kill Streak 5 | 4 5 3 Combat Bots Only 4 | . 4 3 Max Kills in Single Turn 1 | 1 1 1 Gunslinging . | . . . Exploded . | . . . Melee . | . . . Uniques/NPCs Destroyed . | . . . Combat | -11 -10 -10 -------- Run | Yrd Mat Sub Hostile Shots Fired 86 | . 34 52 Missed 22 | . 8 14 Damage Taken 1233 | . 369 864 Core 273 | . 18 255 Absorbed by Shields . | . . . Core Remaining (%) 100 | 100 . . Volleys Fired 108 | 11 59 38 Largest 2 | 1 2 2 Hottest 120 | 20 40 120 Shots Fired 194 | 11 118 65 Gun 194 | 11 118 65 Cannon . | . . . Launcher . | . . . Special . | . . . Kinetic 158 | 11 118 29 Thermal 36 | . . 36 Explosive . | . . . Electromagnetic . | . . . Robot Hit Streak 22 | 4 9 22 Robot Miss Streak 3 | 2 3 2 Penetration Max . | . . . Secondary Targets 1 | . . 1 Max Gunslinging Chain 1 | . . 1 Shots Hit Robots 138 | 8 76 54 Core Hits 50 | 5 30 15 Critical Kills 1 | . 1 . Critical Parts Destroyed . | . . . Critical Strikes 1 | . 1 . Destroy 1 | . 1 . Melee Attacks 10 | . 10 . Impact 10 | . 10 . Slashing . | . . . Piercing . | . . . Sneak Attacks . | . . . Combat Hostiles . | . . . Follow-up Attacks . | . . . Damage Inflicted 1907 | 101 788 1018 Guns 1907 | 101 788 1018 Cannons . | . . . Explosions . | . . . Melee . | . . . Ramming . | . . . Kinetic 1274 | 101 788 385 Thermal 633 | . . 633 Explosive . | . . . Electromagnetic . | . . . Impact . | . . . Slashing . | . . . Piercing . | . . . Highest Corruption 2 | . 2 2 Average Corruption 2 | . 2 2 Corruption Purged . | . . . Corruption Blocked . | . . . Effects 13 | . 5 8 Message Errors 2 | . . 2 Matter Fused 5 | . 3 2 Heat Flow Errors 1 | . . 1 Energy Discharges 1 | . 1 . Data Loss (minor) 1 | . . 1 Data Loss (major) 1 | . . 1 Alerts 2 | . 1 1 Overload Shots . | . . . Overflow Damage . | . . . Projectiles . | . . . Explosions . | . . . Melee . | . . . Knockbacks . | . . . Impact . | . . . Kinetic . | . . . Secondary . | . . . Self-Inflicted Damage . | . . . Shots . | . . . Rammed . | . . . Targets Rammed . | . . . Kicked . | . . . Crushed . | . . . Highest Temperature 288 | . 43 288 Average Temperature 52 | . 14 186 Received Heat Transfer 405 | . 234 171 Siege Activations . | . . . Robots Corrupted . | . . . Combat Hostiles . | . . . Parts Fried . | . . . Impact Corruptions . | . . . Robots Melted . | . . . Combat Hostiles . | . . . Parts Melted 3 | . . 3 Heat Transferred 750 | . . 750 Parts Sabotaged . | . . . Parts Stolen . | . . . Parts Stripped . | . . . Power Chain Reactions . | . . . Alert | -11 -10 -10 ------- Run | Yrd Mat Sub Peak Influence 218 | 20 218 . Initial 13 | . 13 . Average 86 | 7 97 . Maximum Alert Level 1 | . 1 . Low Security (%) 93 | 100 92 . Level 1 6 | . 7 . Level 2 . | . . . Level 3 . | . . . Level 4 . | . . . Level 5 . | . . . High Security . | . . . Max Security . | . . . Squads Dispatched 3 | . 3 . Investigation 3 | . 3 . Extermination . | . . . Reinforcement . | . . . Assault . | . . . Garrison . | . . . Intercept . | . . . Searches Triggered . | . . . Construction Impeded . | . . . Haulers Reinforced . | . . . Active Scanning Responses . | . . . Cargo Convoy Interrupts . | . . . Stealth | -11 -10 -10 --------- Run | Yrd Mat Sub Distress Signals . | . . . Communications Jammed . | . . . Distress Signals . | . . . Times Spotted 28 | . 18 10 Peak Tracking Total 4 | . 4 2 Tactical Retreats 2 | . 2 . Traps | -11 -10 -10 ------- Run | Yrd Mat Sub Traps Triggered 4 | . 3 1 Indirectly . | . . . Trap Hack Attempts . | . . . Triggered . | . . . Disarmed . | . . . Reprogrammed . | . . . Reused 1 | . . 1 Traps Extracted . | . . . Installed 1 | . . 1 Triggered . | . . . Most Traps Carried 1 | . . 1 Machines | -11 -10 -10 ---------- Run | Yrd Mat Sub Machines Disabled . | . . . Max in Single Turn . | . . . Machines Repaired . | . . . Machines Dismantled . | . . . Machines Sabotaged . | . . . Overloaded Fab Kills . | . . . Hacking | -11 -10 -10 --------- Run | Yrd Mat Sub Machines Accessed 6 | . 6 . Terminals 5 | . 5 . Fabricators . | . . . Repair Stations . | . . . Recycling Units 1 | . 1 . Scanalyzers . | . . . Garrison Access . | . . . Total Hacks 16 | . 16 . Successful 9 | . 9 . Failed 7 | . 7 . Catastrophic 3 | . 3 . Database Lockouts . | . . . Manual 12 | . 12 . Terminals 15 | . 15 . Fabricators . | . . . Repair Stations . | . . . Recycling Units 1 | . 1 . Scanalyzers . | . . . Garrison Access . | . . . Terminal Hacks 6 | . 6 . Prototype ID Bank 1 | . 1 . Branch Access Points 1 | . 1 . Terminal Index 1 | . 1 . Registered Components 1 | . 1 . Zone Layout 2 | . 2 . Fabricator Hacks . | . . . Repair Station Hacks . | . . . Recycling Unit Hacks 1 | . 1 . Report Inventory 1 | . 1 . Scanalyzer . | . . . Garrison Access Hacks . | . . . Unauthorized Hacks 2 | . 2 . Terminals 2 | . 2 . Botnet 2 | . 2 . Fabricators . | . . . Repair Stations . | . . . Recycling Units . | . . . Scanalyzers . | . . . Garrison Access . | . . . Data Cores Recovered . | . . . Used . | . . . Hacking Detections 4 | . 4 . Full Trace Events 2 | . 2 . Feedback Events . | . . . Feedback Blocked . | . . . Robot Schematics Acquired . | . . . Robots Built . | . . . Authchips . | . . . Time . | . . . Total Robot Build Rating . | . . . Part Schematics Acquired . | . . . Parts Built . | . . . Authchips . | . . . Time . | . . . Total Part Build Rating . | . . . Parts Repaired . | . . . Time . | . . . Parts Recycled . | . . . Recycled Matter . | . . . Retrieved Matter . | . . . Retrieved Components . | . . . Parts Scanalyzed . | . . . Part Schematics Acquired . | . . . Parts Damaged . | . . . Bothacking | -11 -10 -10 ------------ Run | Yrd Mat Sub Used RIF Installer . | . . . Robots Hacked . | . . . Non-combat . | . . . Combat . | . . . Robot Hacks Applied . | . . . Relay Couplers Released . | . . . Fabnet Peak Effective % . | . . . Robots Rewired . | . . . Allies Hacked . | . . . Hacks Repelled . | . . . Allies | -11 -10 -10 -------- Run | Yrd Mat Sub Total Allies . | . . . Largest Group . | . . . Highest-Rated Group . | . . . Highest-Rated Ally . | . . . Total Orders . | . . . Ally Attacks . | . . . Total Damage . | . . . Kills . | . . . Allies Corrupted . | . . . Allies Melted . | . . . Intel | -11 -10 -10 ------- Run | Yrd Mat Sub Robot Analysis Total . | . . . Derelict Logs Recovered . | . . . Drone Launches . | . . . Drone Recoveries . | . . . Exploration | -11 -10 -10 ------------- Run | Yrd Mat Sub Turns Passed 1980 | 135 955 890 Spaces Moved 1047 | 64 455 528 Core 5 | 4 . 1 Treads 361 | 60 299 2 Legs . | . . . Wheels 681 | . 156 525 Hover . | . . . Flight . | . . . Fastest Speed 50 | 50 135 130 Average Speed 146 | 153 156 137 Slowest Speed 1500 | 160 200 1500 Overloaded Moves . | . . . Propulsion Burnouts . | . . . Robots Hopped . | . . . Cave-ins Triggered . | . . . Exploration Rate (%) 34 | 4 68 31 Regions Visited 2 Branch Regions 1 Pre-discovered Areas 1 | . . 1 Known Exits Taken . | . . . Unknown Exits Taken 2 | 1 1 . Scrap Searched . | . . . Spaces Dug 4 | . 4 . Terrain Destroyed 4 | . 4 . Melee 4 | . 4 . Projectile . | . . . AOE . | . . . Terrain Rammed . | . . . Walls Destroyed . | . . . Machines Disabled . | . . . Actions | -11 -10 -10 --------- Run | Yrd Mat Sub Total 1287 | 88 573 626 Wait 62 | . 33 29 Move 1045 | 63 454 528 Hop . | . . . Pick Up 28 | 4 9 15 Fast Attach 8 | 7 1 . Attach 10 | . 1 9 Detach 2 | 1 1 . Swap 9 | . 4 5 Drop 4 | 2 1 1 Fire 108 | 11 59 38 Melee 10 | . 10 . Ram . | . . . Kick . | . . . Crush . | . . . Escape Stasis . | . . . Rewire . | . . . Trap 1 | . . 1 Miscellaneous . | . . . Route ------- -11/Scrapyard -10/Materials (discovered 3 exits: [*Mat] / *Min / [*Sub]) -10/Subcaves (discovered 1 exit: [*Mat]) History --------- Turn | Location | Event 5 | -11/Scrapyard | Discovered new exit (range 15) 136 | -11/Scrapyard | Entered Materials 301 | -10/Materials | Build established: Mutant 358 | -10/Materials | Discovered new exit (range 10) 512 | -10/Materials | Identified exit to Mines 1087 | -10/Materials | Discovered new exit (range 3) 1091 | -10/Materials | Entered Subcaves 1092 | -10/Subcaves | Shifting Twisted Machinery released Piercing Trap 1105 | -10/Subcaves | Discovered new exit (range 5) 1135 | -10/Subcaves | Learned location of Zion (-6) 1135 | -10/Subcaves | Met a Zionite searching for "candidates" 1138 | -10/Subcaves | Shifting Twisted Machinery released Sub. Laser 1272 | -10/Subcaves | Lost 4 parts (1p1n2w) 1416 | -10/Subcaves | Core integrity fell below 50% 1592 | -10/Subcaves | Build established: Scavenger-Mutant 1864 | -10/Subcaves | Core integrity fell below 20% 1904 | -10/Subcaves | Lost 3 parts (1p1n1w) 1981 | -10/Subcaves | Destroyed by Shrapnel Trap Last Messages --------------- 01856_ Sub. Laser destroyed. 01861_ 2Z-ERG(R) destroyed. 01865_ Sub. Monowheel destroyed. 01870_ J3-QDF(R) affixes Scrap Shield Fragment to Scrap Shield. 01873_ Broken Sub. Power Source destroyed. 01874_ Disposable Heat Sink melted. 01874_ J3-QDF(R) destroyed. 01880_ Subatomizers dissect the Sub. Optics. 01881_ System corrupted: IFF burst signal emitted. 01882_ Acquired Sub. Monowheel. 01890_ Acquired 40 matter. 01893_ Subatomizers dissect the Sub. Optics. 01894_ Acquired Sub. Beam Cannon. 01906_ Subatomizers dissect the Sub. Optics. 01921_ 9Y-V54(R) destroyed. 01924_ Acquired 4 matter. 01940_ Subatomizers dissect the Disposable Heat Sink. 01981_ Triggered Shrapnel Trap. 01981_ An expanding cloud of shrapnel blasts out in all directions. 01981_ Sub. Machine Gun destroyed. Map ----- +----------------------------------------------------+ | ?????????????????????????????????#????????#??????# | | ?????????????????????????????????????????#??#????? | | ??????????????????????????????????#??????######### | | ??????????????????????????????????? ???### # # | | ???????????????????????????????????????# " | | ????????????????????????????????#?#? ??#" | | ???????????????????????????????????????# # #### | | ????????????????????????#???#????? ????######??## | | ?????????????????????????????????????????#??#### | | ???????????????????????????????????""#??????## | | ???????????????????????????????????""#####??# | | ?????????????????? ????????? ??####" ???# | | ???????????????? #???????? ###""" % ??###"" # | | ????????????????% #??????? """"""""""""""??####? | | ?????????????? #????## """""""""" ????#? | | ?????????????? ##### ????# """#???????### | | ?????????????# ????# ####?? ??### # | | ??????????????# ????# ##?????#???# | | ???????????????# ##### #??????????## | | ????????????????# # # ## ##??????????# | | ????????????????# # ##??######## | | ????????????????# # #### # | | ??????????????#?# # ## % | | ????????????????????# ###### | | ????????????????????## #????## ### # # | | ?????????????????????## @ #?????#####?####### | | ??????????????????????####### #???#????????????# | | ????????????????????????????## #???????????????# | | ?????????????????????????????## #??????#????????? | | ???????????????????????????????##????????????????# | | ??????????????? ????????????????????????????#??#?? | | ?????????????????????????? ??????????????????##??? | | ????????????????????????????????????????#????#???? | | ?????????????????????????????????????????????????? | | ?????????????????????????????????????????????????? | | ??????????????????????????????????#??????????????? | | ???????????????????????????????????????????#?????? | | ?????????????????????????????????????#???????????? | | ???????????????????????????????????????##?#??????? | | ?????????????????????????????????????????????????? | | ?????????????????????????????????????????????????? | | ???????????????????????????????????????????????#?? | | ?????????????????????????????????????????????????? | | ?????????????????????????????????????????????????? | | ?????????????????????????????????????????????????? | | ?????????????????????????????????????????#???????? | | ????????????????????????????????????????????????## | | ????????????????????????????????????#???#????##?# | | ??????????????????????????????????????????????#?# | | ??????????????????????????????????#?????????#???# | +----------------------------------------------------+ Best States ------------- Heat Dissipation 25 Energy Generation 15 Energy Capacity 250 Matter Stores 300 Matter Capacity 300 Sight Range 16 Terrain Scan Range 16 Terrain Scan Density 10 Evasion (%) 40 Recoil Reduction 2 Item Schematics ----------------- None Robot Schematics ------------------ None Fabricated ------------ Nothing Alien Tech Used ----------------- None Achievements -------------- None Challenges ------------ None Game ------ Seed EfficiencyFlakChainsaw Manual? 0 Play Time 00:10:55 Cumulative 120.5 hours Start 2024.09.06 @ 01:42:31 End 2024.09.06 @ 01:50:11 Sessions 1 Manual Loads 0 Difficulty Rogue Special Mode None Game No. 143 Rogue 143 Adventurer 0 Explorer 0 Win Type - Total 2 Types 2/0/0/0/0/0/0/0/0 Lore% 56 Gallery% 64 Achievement% 48 Wizard Run 0 Options --------- Layout 0 ASCII 0 Keyboard 1 Movement Numpad Keybinds 0 Fullscreen 2 Font 18/SmallcapsGlow Map View 76x50 Zoom Use 0% Tactical HUD 1 Map Filters NONE Filters NONE Steam 1 RUN: 93d82321-53e2-4312-a890-7847b7467bbe